Cogmind - Beta 13 @@@ ROGUE MODE // 2024.07.13 @ 01:01:21 Player: Sherlockkat Result: Destroyed by S-10 Pest with Light Assault Rifle Performance ------------- Evolutions (0) 0 Regions Visited (1) 200 Robots Destroyed (9) 45 Value Destroyed (252) 252 Prototype IDs (1) 20 Alien Tech Used (0) 0 Bonus (0) 0 TOTAL SCORE: 517 Bonus ------- None Cogmind --------- Core Integrity 0/250 Matter 207/300 Energy 280/280 System Corruption 0% Temperature Cool (0) Movement Treading (160) Location -10/Materials Parts ------- > --- POWER (1) -------- Heavy Ion Engine > --- PROPULSION (2) --- Light Treads Light Treads > --- UTILITY (2) ------ Medium Storage Unit Improved Targeting Computer > --- WEAPON (2) ------- Assault Rifle Assault Rifle > --- INVENTORY (10) --- Light Ion Engine Heavy Ion Engine Light Nuclear Core Improved Treads Improved Treads Seismic Detector Transport Network Coupler Grenade Launcher Mini Grenade Launcher Peak State ------------ > --- POWER ------------ Heavy Ion Engine > --- PROPULSION ------- Light Treads Light Treads > --- UTILITY ---------- Small Storage Unit Improved Targeting Computer > --- WEAPON ----------- Assault Rifle Assault Rifle > --- INVENTORY -------- Light Ion Engine Heavy Ion Engine Light Nuclear Core Improved Treads Improved Treads Seismic Detector Grenade Launcher [Rating: 11] Favorites ----------- Power Light Ion Engine Engine Light Ion Engine Propulsion Light Treads Treads Light Treads Wheel Wheel Utility Small Storage Unit Storage Small Storage Unit Processor Improved Targeting Computer Weapon Assault Rifle Ballistic Gun Assault Rifle Build | -11 -10 ------- Run | Yrd Mat Slots Evolved . | . . Power . | . . Propulsion . | . . Utility . | . . Weapon . | . . Parts Attached 11 | 5 6 Power 2 | 1 1 Engine 2 | 1 1 Core . | . . Reactor . | . . Propulsion 4 | 2 2 Treads 2 | . 2 Leg . | . . Wheel 2 | 2 . Hover . | . . Flight . | . . Utility 3 | . 3 Device . | . . Storage 2 | . 2 Processor 1 | . 1 Hackware . | . . Protection . | . . Artifact . | . . Weapon 2 | 2 . Energy Gun . | . . Energy Cannon . | . . Ballistic Gun 2 | 2 . Ballistic Cannon . | . . Launcher . | . . Special Weapon . | . . Impact Weapon . | . . Slashing Weapon . | . . Piercing Weapon . | . . Special Melee Weapon . | . . Unidentified Prototypes 1 | . 1 Parts Lost . | . . Power . | . . Propulsion . | . . Utility . | . . Weapon . | . . Highest Loss Streak . | . . To Critical Strikes . | . . Average Slot Usage (%) 91 | . 91 Engine 14 | . 14 Treads 18 | . 18 Wheel 9 | . 9 Storage 12 | . 12 Processor 7 | . 7 Ballistic Gun 28 | . 28 Naked Turns . | . . Heaviest Build 22 | 7 22 Greatest Support 40 | 20 40 Greatest Overweight (x) . | . . Average Overweight (x) . | . . Largest Inventory Capacity 10 | 5 10 Average Capacity 7 | 5 7 Most Carried 9 | 5 9 Average Carried 6 | 2 6 Final Capacity 10 | 5 10 Final Carried 9 | 5 9 Class Distribution -------------------- 100% | Mutant Dominant Class ---------------- Mutant | -10/Materials Resources | -11 -10 ----------- Run | Yrd Mat Matter Collected 355 | 219 136 Remotely . | . . Salvage Created 341 | 28 313 Parts 24 | 3 21 Haulers Intercepted 1 | . 1 Recyclers Shooed 1 | . 1 Parts Field Recycled . | . . Retrieved Matter . | . . Parts Self-Destructed . | . . Prevented . | . . Kills | -11 -10 ------- Run | Yrd Mat Combat Hostiles Destroyed 6 | . 6 Guns 6 | . 6 Classes Destroyed 4 | 1 3 Tunneler 1 | 1 . Hauler 1 | . 1 Recycler 1 | . 1 Grunt 6 | . 6 Best Kill Streak 3 | 1 3 Combat Bots Only 3 | . 3 Max Kills in Single Turn 1 | 1 1 Gunslinging . | . . Exploded . | . . Melee . | . . Uniques/NPCs Destroyed . | . . Combat | -11 -10 -------- Run | Yrd Mat Hostile Shots Fired 30 | . 30 Missed 8 | . 8 Damage Taken 452 | . 452 Core 253 | . 253 Absorbed by Shields . | . . Core Remaining (%) 100 | 100 . Volleys Fired 23 | 1 22 Largest 2 | 2 2 Hottest 40 | 40 40 Shots Fired 46 | 2 44 Gun 46 | 2 44 Cannon . | . . Launcher . | . . Special . | . . Kinetic 46 | 2 44 Thermal . | . . Explosive . | . . Electromagnetic . | . . Robot Hit Streak 10 | 1 10 Robot Miss Streak 2 | . 2 Penetration Max . | . . Secondary Targets 1 | . 1 Max Gunslinging Chain 1 | . 1 Shots Hit Robots 35 | 1 34 Core Hits 17 | 1 16 Critical Kills . | . . Critical Parts Destroyed 1 | . 1 Critical Strikes 1 | . 1 Destroy 1 | . 1 Melee Attacks . | . . Impact . | . . Slashing . | . . Piercing . | . . Sneak Attacks . | . . Combat Hostiles . | . . Follow-up Attacks . | . . Damage Inflicted 664 | 15 649 Guns 436 | 15 421 Cannons . | . . Explosions 228 | . 228 Melee . | . . Ramming . | . . Kinetic 436 | 15 421 Thermal 228 | . 228 Explosive . | . . Electromagnetic . | . . Impact . | . . Slashing . | . . Piercing . | . . Highest Corruption . | . . Average Corruption . | . . Corruption Purged . | . . Corruption Blocked . | . . Overload Shots . | . . Overflow Damage 60 | . 60 Projectiles . | . . Explosions 60 | . 60 Melee . | . . Knockbacks . | . . Impact . | . . Kinetic . | . . Secondary . | . . Self-Inflicted Damage 208 | . 208 Shots 2 | . 2 Rammed . | . . Targets Rammed . | . . Kicked . | . . Crushed . | . . Highest Temperature 18 | . 18 Average Temperature 6 | . 6 Received Heat Transfer 114 | . 114 Siege Activations . | . . Robots Corrupted . | . . Combat Hostiles . | . . Parts Fried . | . . Impact Corruptions . | . . Robots Melted . | . . Combat Hostiles . | . . Parts Melted . | . . Heat Transferred 100 | . 100 Parts Sabotaged . | . . Parts Stolen . | . . Parts Stripped . | . . Power Chain Reactions . | . . Alert | -11 -10 ------- Run | Yrd Mat Peak Influence 279 | 5 279 Initial 3 | . 3 Average 122 | . 141 Maximum Alert Level 1 | . 1 Low Security (%) 76 | 100 72 Level 1 23 | . 27 Level 2 . | . . Level 3 . | . . Level 4 . | . . Level 5 . | . . High Security . | . . Max Security . | . . Squads Dispatched 2 | . 2 Investigation 2 | . 2 Extermination . | . . Reinforcement . | . . Assault . | . . Garrison . | . . Intercept . | . . Searches Triggered . | . . Construction Impeded . | . . Haulers Reinforced . | . . Active Scanning Responses . | . . Cargo Convoy Interrupts . | . . Stealth | -11 -10 --------- Run | Yrd Mat Distress Signals . | . . Communications Jammed . | . . Distress Signals . | . . Times Spotted 12 | . 12 Peak Tracking Total 5 | . 5 Tactical Retreats . | . . Traps | -11 -10 ------- Run | Yrd Mat Traps Triggered 1 | . 1 Indirectly . | . . Trap Hack Attempts . | . . Triggered . | . . Disarmed . | . . Reprogrammed . | . . Reused . | . . Traps Extracted . | . . Installed . | . . Triggered . | . . Machines | -11 -10 ---------- Run | Yrd Mat Machines Disabled 2 | . 2 Max in Single Turn 2 | . 2 Machines Repaired . | . . Machines Dismantled . | . . Machines Sabotaged . | . . Overloaded Fab Kills . | . . Hacking | -11 -10 --------- Run | Yrd Mat Machines Accessed 1 | . 1 Terminals . | . . Fabricators . | . . Repair Stations . | . . Recycling Units 1 | . 1 Scanalyzers . | . . Garrison Access . | . . Total Hacks 1 | . 1 Successful 1 | . 1 Failed . | . . Catastrophic . | . . Database Lockouts . | . . Manual 1 | . 1 Terminals . | . . Fabricators . | . . Repair Stations . | . . Recycling Units 1 | . 1 Scanalyzers . | . . Garrison Access . | . . Terminal Hacks . | . . Fabricator Hacks . | . . Repair Station Hacks . | . . Recycling Unit Hacks . | . . Scanalyzer . | . . Garrison Access Hacks . | . . Unauthorized Hacks 1 | . 1 Terminals . | . . Fabricators . | . . Repair Stations . | . . Recycling Units 1 | . 1 Tunnel 1 | . 1 Scanalyzers . | . . Garrison Access . | . . Data Cores Recovered . | . . Used . | . . Hacking Detections . | . . Full Trace Events . | . . Feedback Events . | . . Feedback Blocked . | . . Robot Schematics Acquired . | . . Robots Built . | . . Authchips . | . . Time . | . . Total Robot Build Rating . | . . Part Schematics Acquired . | . . Parts Built . | . . Authchips . | . . Time . | . . Total Part Build Rating . | . . Parts Repaired . | . . Time . | . . Parts Recycled . | . . Recycled Matter . | . . Retrieved Matter . | . . Retrieved Components . | . . Parts Scanalyzed . | . . Part Schematics Acquired . | . . Parts Damaged . | . . Bothacking | -11 -10 ------------ Run | Yrd Mat Used RIF Installer . | . . Robots Hacked . | . . Non-combat . | . . Combat . | . . Robot Hacks Applied . | . . Relay Couplers Released . | . . Fabnet Peak Effective % . | . . Robots Rewired . | . . Allies Hacked . | . . Hacks Repelled . | . . Allies | -11 -10 -------- Run | Yrd Mat Total Allies . | . . Largest Group . | . . Highest-Rated Group . | . . Highest-Rated Ally . | . . Total Orders . | . . Ally Attacks . | . . Total Damage . | . . Kills . | . . Allies Corrupted . | . . Allies Melted . | . . Intel | -11 -10 ------- Run | Yrd Mat Robot Analysis Total . | . . Derelict Logs Recovered . | . . Drone Launches . | . . Drone Recoveries . | . . Exploration | -11 -10 ------------- Run | Yrd Mat Turns Passed 461 | 64 397 Spaces Moved 305 | 63 242 Core 6 | 6 . Treads 125 | . 125 Legs . | . . Wheels 174 | 57 117 Hover . | . . Flight . | . . Fastest Speed 50 | 50 80 Average Speed 112 | 77 121 Slowest Speed 160 | 80 160 Overloaded Moves . | . . Propulsion Burnouts . | . . Robots Hopped . | . . Cave-ins Triggered . | . . Exploration Rate (%) 22 | 3 42 Regions Visited 1 Branch Regions . Pre-discovered Areas 1 | . 1 Known Exits Taken . | . . Unknown Exits Taken 1 | 1 . Scrap Searched . | . . Spaces Dug . | . . Terrain Destroyed 25 | . 25 Melee . | . . Projectile . | . . AOE 25 | . 25 Terrain Rammed . | . . Walls Destroyed . | . . Machines Disabled . | . . Actions | -11 -10 --------- Run | Yrd Mat Total 378 | 73 305 Wait 18 | . 18 Move 304 | 62 242 Hop . | . . Pick Up 13 | 5 8 Fast Attach 8 | 5 3 Attach 2 | . 2 Detach 3 | . 3 Swap 1 | . 1 Drop 6 | . 6 Fire 23 | 1 22 Melee . | . . Ram . | . . Kick . | . . Crush . | . . Escape Stasis . | . . Rewire . | . . Trap . | . . Miscellaneous . | . . Route ------- -11/Scrapyard -10/Materials (discovered 1 exit: [*Mat]) History --------- Turn | Location | Event 41 | -11/Scrapyard | Discovered new exit (range 15) 65 | -11/Scrapyard | Entered Materials 139 | -10/Materials | Discovered new exit (range 16) 316 | -10/Materials | Build established: Mutant 355 | -10/Materials | Core integrity fell below 50% 355 | -10/Materials | Core integrity fell below 20% 462 | -10/Materials | Destroyed by S-10 Pest with Light Assault Rifle Last Messages --------------- 00354_ Fusion Modulator explodes. 00354_ Destroyed Aluminum Leg. 00355_ G-34 Mercenary destroyed. 00361_ Acquired 17 matter. 00369_ K-01 Serf collects debris. 00369_ U-05 Engineer lays Concrete. 00375_ K-01 Serf collects debris. 00375_ U-05 Engineer lays Concrete. 00376_ U-05 Engineer builds a Wall. 00426_ K-01 Serf collects debris. 00433_ A-02 Transporter destroyed. 00435_ K-01 Serf collects debris. 00436_ Extracted 4 energy. 00438_ K-01 Serf collects debris. 00439_ Extracted 4 energy. 00442_ K-01 Serf collects debris. 00444_ Dropped Sml. Storage Unit. 00446_ K-01 Serf collects debris. 00447_ Acquired Transport Network Coupler. 00451_ K-01 Serf collects debris. Map ----- +----------------------------------------------------+ | ????#% #?????????????????????????????????????????? | | ????#= #????########?????????????????????????????? | | ????# #????# #?????????????????????????????? | | ????# #????# #?????????????????????????????? | | ????# #????# """#?????????????????????????????? | | ????# #????# """#####?????????????????????????? | | ????# #????# """# [[#?????????????????????????? | | ????# #????? ?# [[#?????????????????????????? | | ????# ########+#### //#?????????????????????????? | | ????# =//#?????????????????????????? | | ????# < == #?????????????????????????? | | ????# ^ %! [==#?????????????????????????? | | ############ !#####?????????????????????????? | | #?# #?????????????????????????????? | | #?# #?????????????????????????????? | | #?# #?????????????????????????????? | | = ### #######???????????????????????? | | ## #???????????????????????? | | ## #???????????????????????? | | [ ## =! #???????????????????????? | | ### =!!! #???????????????????????? | | [ ##?# """ """%!!#???????????????????????? | | #??# """""""""! #??????? ########???????? | | ####??# """"" #????? ??????? | | # #?????# #### ??????? | | # ####### @ s w !!!??????? | | # ####### g !! ??????? | | # #???????? !! ??????? | | # #?????????? ???????? | | ### #### ## #???????????? ???????? | | #?# #??# * ## ##########?????? ????????? | | ##?# #??#**]]!!## # #????????##????????? | | ####+####* ] ! ## + = #??????????????????? | | # ########## # #??????????????????? | | # """ #????????# # """"" #??????????????????? | | # """ #?????? # """"" #??????????????????? | | # """ #???? # """""????????????????????? | | # +?? #######?????????????????????? | | # #? #######+###???????????????????????????? | | ######## ????????????????????????????????????????? | | ?????????????????????????????????????????????????? | | ?????????????????????????????????????????????????? | | ?????????????????????????????????????????????????? | | ?????????????????????????????????????????????????? | | ?????????????????????????????????????????????????? | | ?????????????????????????????????????????????????? | | ?????????????????????????????????????????????????? | | ?????????????????????????????????????????????????? | | ?????????????????????????????????????????????????? | | ?????????????????????????????????????????????????? | +----------------------------------------------------+ Best States ------------- Heat Dissipation 25 Energy Generation 14 Energy Capacity 280 Matter Stores 300 Matter Capacity 300 Sight Range 16 Terrain Scan Density 10 Evasion (%) 44 Targeting Accuracy 6 Recoil Reduction 2 Item Schematics ----------------- None Robot Schematics ------------------ None Fabricated ------------ Nothing Alien Tech Used ----------------- None Achievements -------------- None Challenges ------------ None Game ------ Seed AssaultFluxKinecellerator Manual? 0 Play Time 00:04:44 Cumulative 463.8 hours Start 2024.07.13 @ 00:58:47 End 2024.07.13 @ 01:01:21 Sessions 1 Manual Loads 0 Difficulty Rogue Special Mode None Game No. 511 Rogue 511 Adventurer 0 Explorer 0 Win Type - Total 40 Types 24/3/12/1/0/0/0/0/0 Lore% 74 Gallery% 85 Achievement% 65 Wizard Run 0 Options --------- Layout 1 ASCII 1 Keyboard 1 Movement Numpad Keybinds 0 Fullscreen 1 Font 24/Tamsyn Map View 50x35 Zoom Use 0% Tactical HUD 1 Map Filters NONE Filters NONE Steam 1 RUN: 8380285f-06d0-4348-9cc5-0e8bac15b52c